bitfinex-derivatives/quotes_SOLF0:USTF0_20250111
["timestamp","ask_amount","ask_price","bid_price","bid_amount"]
[1736591817472,7.27892514,185.04,184.97,1.5524]
[1736591817673,7.27892514,185.04,184.95,41.80676905]
[1736591817874,7.27892514,185.04,184.98,2.7036]
[1736591818175,7.27892514,185.02,184.98,2.7036]
[1736591821674,12.70192514,185.04,184.97,7.27892514]
[1736591821874,12.70192514,185.04,184.99,9.98232514]
[1736591823173,5.423,185.07,184.99,7.27892514]
[1736591823375,5.423,185.08,185.03,7.27892514]
[1736591824866,5.423,185.08,185.05,2.7026]
[1736591825267,5.423,185.08,185.03,7.27892514]
[1736591825474,5.423,185.08,185.04,2.7027]
[1736591826577,5.423,185.08,185.03,7.27892514]
[1736591826781,5.423,185.08,185.03,9.98182514]
[1736591829575,5.423,185.1,185.03,7.27892514]
[1736591829779,5.52,185.11,185.03,7.27892514]
[1736591829982,7.27892514,185.11,185.05,7.27892514]
[1736591830676,7.27892514,185.11,185.06,2.7024]
[1736591831479,7.27892514,185.11,185.05,7.27892514]
[1736591831673,7.27892514,185.11,184.97,5.52]
[1736591831674,5.423,185.1,184.97,5.52]
[1736591831877,7.27892514,185.09,184.97,5.52]
[1736591832083,7.27892514,185.09,184.96,1.5597]
[1736591832283,7.27892514,185.07,184.96,1.5597]
[1736591832582,7.27892514,185.05,184.97,7.27892514]
[1736591832787,7.27892514,185.05,184.98,2.7036]
[1736591834086,7.27892514,185.03,184.98,2.7036]
[1736591841591,7.27892514,185.03,184.99,2.7034]
[1736591842693,12.70192514,185.05,184.99,2.7034]
[1736591847096,12.70192514,185.05,185.01,2.7032]
[1736591847296,5.423,185.06,184.99,7.27892514]
[1736591848196,5.423,185.06,185.02,2.7029]
[1736591851502,5.423,185.06,184.99,7.27892514]
[1736591851702,5.423,185.04,185.01,2.7032]
[1736591851900,5.423,185.04,184.93,1.6858]
[1736591852205,7.27892514,185.03,184.96,7.27892514]
[1736591852603,7.27892514,185.03,184.98,2.7035]
[1736591852802,7.27892514,185.03,184.96,7.27892514]
[1736591853606,7.27892514,185.03,184.98,2.7036]
[1736591855405,7.27892514,185.01,184.95,2.704]
[1736591855908,12.70192514,185.01,184.95,2.704]
[1736591856711,7.27892514,184.99,184.89,5.61225904]
[1736591856912,7.27892514,184.96,184.89,12.89118418]
[1736591857412,7.27892514,184.96,184.89,15.59598418]
[1736591857605,7.27892514,184.96,184.89,12.89118418]
[1736591857803,12.70192514,184.96,184.89,8.31715904]
[1736591858012,12.70192514,184.96,184.89,15.59608418]
[1736591858412,5.423,184.96,184.89,15.59608418]
[1736591858614,12.70192514,184.96,184.89,15.59608418]
[1736591858917,12.70192514,184.96,184.89,5.61225904]
[1736591859117,7.27892514,184.94,184.89,5.61225904]
[1736591859316,7.27892514,184.94,184.87,7.27892514]
[1736591859712,3.2716,184.95,184.87,7.27892514]
[1736591860012,3.2716,184.95,184.85,7.27892514]
[1736591860013,7.27892514,184.92,184.85,7.27892514]
[1736591860218,7.27892514,184.9,184.84,7.27892514]
[1736591860913,5.423,184.91,184.86,7.27892514]
[1736591861114,5.423,184.92,184.86,7.27892514]
[1736591861317,7.27892514,184.9,184.78,1.5886]
[1736591861615,7.27892514,184.9,184.84,7.27892514]
[1736591862321,7.27892514,184.88,184.79,2.7063]
[1736591862522,7.27892514,184.86,184.79,7.27892514]
[1736591862819,7.27892514,184.86,184.78,7.27892514]
[1736591863009,7.27892514,184.86,184.76,2.7067]
[1736591863212,7.27892514,184.86,184.78,7.27892514]
[1736591863417,12.70192514,184.84,184.77,2.7067]
[1736591863612,12.70192514,184.84,184.72,1.6328]
[1736591863819,12.70192514,184.84,184.78,7.27892514]
[1736591864717,12.70192514,184.84,184.77,7.27892514]
[1736591865614,12.70192514,184.84,184.75,5.61674668]
[1736591865814,7.27892514,184.82,184.75,5.61674668]
[1736591866020,7.27892514,184.8,184.68,3.2175]
[1736591866319,7.27892514,184.78,184.72,7.27892514]
[1736591866521,7.27892514,184.78,184.68,3.2175]
[1736591866711,7.27892514,184.78,184.7,7.27892514]
[1736591867719,12.70192514,184.78,184.68,4.3618]
[1736591867916,12.70192514,184.78,184.71,7.27892514]
[1736591868315,7.27892514,184.76,184.64,101.28]
[1736591868522,7.27892514,184.76,184.68,7.27892514]
[1736591868917,7.0233,184.77,184.68,7.27892514]
[1736591869317,7.27892514,184.75,184.68,7.27892514]
[1736591869820,7.27892514,184.73,184.67,7.27892514]
[1736591870817,5.423,184.75,184.61,10.312]
[1736591870818,7.27892514,184.71,184.63,2.7087]
[1736591871018,7.27892514,184.71,184.64,7.27892514]
[1736591871324,12.70192514,184.71,184.64,7.27892514]
[1736591871823,7.27892514,184.69,184.53,3.1857]
[1736591872127,7.27892514,184.67,184.61,7.27892514]
[1736591872424,5.412,184.75,184.65,7.27892514]
[1736591872613,5.412,184.73,184.68,7.27892514]
[1736591872813,1.6129,184.75,184.7,7.27892514]
[1736591873019,1.6129,184.75,184.69,7.27892514]
[1736591873317,8.89182514,184.75,184.69,7.27892514]
[1736591874016,12.69092514,184.79,184.64,1.6773]
[1736591874320,14.38852514,184.79,184.73,7.27892514]
[1736591875417,18.51080081,184.79,184.66,11.40120081]
[1736591876619,5.412,184.75,184.66,11.40120081]
[1736591877921,11.40120081,184.73,184.59,11.40120081]
[1736591878121,1.6514,184.72,184.59,11.40120081]
[1736591878633,1.6514,184.72,184.6,1.5801]
[1736591879028,11.40120081,184.7,184.52,106.94]
[1736591879329,5.412,184.69,184.55,11.40120081]
[1736591880327,5.412,184.69,184.56,2.7097]
[1736591880527,5.412,184.69,184.55,11.40120081]
[1736591880728,11.40120081,184.67,184.55,11.40120081]
[1736591881830,11.40120081,184.7,184.58,14.11060081]
[1736591882028,11.40120081,184.7,184.58,11.40120081]
[1736591882421,11.40120081,184.7,184.6,2.7091]
[1736591883431,5.412,184.69,184.6,2.7091]
[1736591883826,5.412,184.7,184.62,2.7088]
[1736591884227,5.412,184.7,184.62,4.3422]
[1736591884520,5.412,184.7,184.63,2.7087]
[1736591885432,5.412,184.71,184.64,11.40120081]
[1736591885929,5.412,184.71,184.65,2.7083]
[1736591886121,5.412,184.81,184.67,11.40120081]
[1736591886321,16.81320081,184.81,184.67,11.40120081]
[1736591886521,11.40120081,184.78,184.67,14.10940081]
[1736591887728,11.40120081,184.75,184.62,4.3422]
[1736591888025,11.40120081,184.72,184.62,4.3422]
[1736591888434,11.40120081,184.72,184.62,1.6334]
[1736591889027,16.81320081,184.69,184.58,2.7095]
[1736591889235,16.81320081,184.69,184.55,16.22310081]
[1736591890131,16.81320081,184.69,184.56,2.7098]
[1736591890334,11.40120081,184.69,184.58,11.40120081]
[1736591891032,16.81320081,184.69,184.55,16.22310081]
[1736591891935,11.40120081,184.66,184.52,2.7103]
[1736591892136,11.40120081,184.63,184.51,11.40120081]
[1736591892837,11.40120081,184.63,184.51,14.11160081]
[1736591893326,11.40120081,184.63,184.51,11.40120081]
[1736591893531,11.40120081,184.63,184.51,2.7104]
[1736591894037,11.40120081,184.63,184.5,11.40120081]
[1736591894038,5.412,184.62,184.5,14.11180081]
[1736591894536,5.412,184.62,184.5,11.40120081]
[1736591895140,5.412,184.62,184.53,2.7102]
[1736591895441,5.412,184.62,184.53,11.40120081]
[1736591895940,5.412,184.62,184.48,11.63758035]
[1736591896240,11.40120081,184.6,184.48,23.03878116]
[1736591897237,11.40120081,184.57,184.47,1.6864]
[1736591897430,11.40120081,184.6,184.48,11.40120081]
[1736591897829,11.40120081,184.6,184.49,2.7108]
[1736591898034,11.40120081,184.6,184.48,11.40120081]
[1736591898436,16.81320081,184.6,184.39,101.44]
[1736591898636,11.40120081,184.54,184.43,11.40120081]
[1736591899244,16.81320081,184.54,184.43,11.40120081]
[1736591899840,16.81320081,184.54,184.42,2.7118]
[1736591900036,16.81320081,184.54,184.4,2.54536219]
[1736591900243,11.40120081,184.51,184.4,13.946563]
[1736591900440,5.412,184.53,184.43,11.40120081]
[1736591900737,11.40120081,184.54,184.43,11.40120081]
[1736591901843,3.3291,184.56,184.46,11.40120081]
[1736591902140,3.3291,184.56,184.47,2.711]
[1736591902348,1.6673,184.56,184.49,11.40120081]
[1736591902545,5.412,184.58,184.49,11.40120081]
[1736591902843,17.12120081,184.63,184.52,11.40120081]
[1736591903045,11.40120081,184.63,184.53,1.6842]
[1736591904146,11.40120081,184.63,184.55,2.7099]
[1736591904740,5.412,184.65,184.55,11.40120081]
[1736591904944,5.412,184.68,184.55,11.40120081]
[1736591905145,5.412,184.68,184.56,1.6252]
[1736591905444,11.40120081,184.69,184.59,2.7092]
[1736591905639,6.9513,184.72,184.58,11.40120081]
[1736591905946,6.9513,184.72,184.61,11.40120081]
[1736591906340,6.9513,184.72,184.62,1.6128]
[1736591906542,5.412,184.72,184.62,1.6128]
[1736591907150,5.412,184.72,184.62,4.3216]
[1736591907948,5.412,184.83,184.65,2.7084]
[1736591908146,11.40120081,184.76,184.64,11.40120081]
[1736591908843,14.65910081,184.79,184.68,2.708]
[1736591909043,14.65910081,184.79,184.67,11.40120081]
[1736591909349,1.6684,184.82,184.7,11.40120081]
[1736591909546,1.6684,184.82,184.73,11.40120081]
[1736591910143,1.6684,184.82,184.73,14.10840081]
[1736591910344,13.06960081,184.82,184.72,1.6817]
[1736591911545,13.06960081,184.82,184.71,1.5365]
[1736591916451,13.06960081,184.82,184.71,15.64530081]
[1736591916844,13.06960081,184.82,184.71,12.93770081]
[1736591916845,1.6684,184.82,184.71,12.93770081]
[1736591917051,3.2579,184.88,184.78,11.40120081]
[1736591917748,3.2579,184.88,184.79,2.7063]
[1736591917950,3.2579,184.88,184.78,11.40120081]
[1736591918251,1.6803,184.88,184.78,11.40120081]
[1736591918954,1.6803,184.88,184.82,2.7058]
[1736591919149,1.6803,184.88,184.81,11.40120081]
[1736591919457,1.6803,184.88,184.78,11.40120081]
[1736591919655,1.6803,184.88,184.76,8.4067]
[1736591919656,1.6803,184.88,184.76,5.7]
[1736591920454,1.5745,184.87,184.76,5.7]
[1736591920648,1.5745,184.87,184.75,11.40120081]
[1736591920649,11.40120081,184.86,184.75,11.40120081]
[1736591921253,1.5745,184.87,184.74,18.22798753]
[1736591921455,1.5745,184.87,184.76,2.7068]
[1736591921648,1.5745,184.87,184.74,18.22798753]
[1736591921854,19.80248753,184.87,184.72,1.5499]
[1736591922353,25.21448753,184.87,184.74,2.707]
[1736591922554,25.21448753,184.87,184.72,1.5499]
[1736591923355,25.21448753,184.87,184.73,2.7073]
[1736591923655,25.21448753,184.87,184.72,1.5499]
[1736591923954,25.21448753,184.87,184.74,2.7071]
[1736591924554,25.21448753,184.87,184.76,2.7068]
[1736591925456,25.21448753,184.87,184.77,2.7067]
[1736591927160,6.9865,184.87,184.77,2.7067]
[1736591927654,6.9865,184.87,184.71,19.76448753]
[1736591928765,6.9865,184.87,184.75,2.707]
[1736591931160,6.9865,184.87,184.77,2.7067]
[1736591931560,6.9865,184.87,184.71,19.76448753]
[1736591931761,5.412,184.84,184.71,19.76448753]
[1736591931963,6.9922,184.83,184.71,19.76448753]
[1736591932261,6.9922,184.83,184.72,2.7073]
[1736591932665,5.412,184.81,184.68,19.89228753]
[1736591932967,7.0431,184.8,184.65,18.22798753]
[1736591933167,5.412,184.78,184.64,18.22798753]
[1736591933467,5.412,184.76,184.64,18.22798753]
[1736591933671,1.5802,184.75,184.64,18.22798753]
[1736591933962,6.9922,184.75,184.62,3.2111]
[1736591934264,6.9922,184.75,184.6,5.49069633]
[1736591934459,5.412,184.72,184.6,8.19989633]
[1736591934665,5.412,184.7,184.6,8.19989633]
[1736591935668,5.412,184.66,184.54,18.22798753]
[1736591935869,1.5634,184.65,184.54,18.22798753]
[1736591936169,1.5634,184.65,184.51,18.22798753]
[1736591937768,1.5634,184.65,184.54,2.7099]
[1736591938067,1.5634,184.65,184.51,18.22798753]
[1736591938870,1.5634,184.65,184.56,2.7098]
[1736591939974,1.5634,184.65,184.51,18.22798753]
[1736591940170,1.5634,184.65,184.54,18.22798753]
[1736591940963,1.5634,184.65,184.51,18.22798753]
[1736591941168,1.5634,184.65,184.57,2.7096]
[1736591941372,1.5634,184.65,184.51,18.22798753]
[1736591941568,18.22798753,184.7,184.54,18.22798753]
[1736591941768,1.6311,184.71,184.64,2.7086]
[1736591942173,1.6311,184.71,184.6,18.22798753]
[1736591942366,1.6311,184.71,184.65,2.7084]
[1736591942566,1.6311,184.71,184.61,1.5806]
[1736591942775,14.3663,184.76,184.61,1.5806]
[1736591942977,14.3663,184.76,184.7,2.7077]
[1736591943270,1.6345,184.76,184.7,2.7077]
[1736591943576,1.6345,184.76,184.63,18.22798753]
[1736591944273,1.6012,184.78,184.63,18.22798753]
[1736591944872,18.22798753,184.8,184.61,1.5806]
[1736591944873,18.22798753,184.8,184.66,18.22798753]
[1736591945078,18.22798753,184.8,184.66,5.68]
[1736591945272,23.63998753,184.8,184.66,5.68]
[1736591946887,23.63998753,184.8,184.63,23.90798753]
[1736591947182,23.63998753,184.8,184.67,2.708]
[1736591947885,23.63998753,184.8,184.68,2.708]
[1736591952585,23.63998753,184.8,184.69,2.7078]
[1736591953387,11.40555595,184.77,184.69,2.7078]
[1736591957389,11.40555595,184.77,184.61,1.5806]
[1736591957582,11.40555595,184.74,184.62,11.40555595]
[1736591957787,1.6428,184.73,184.62,11.40555595]
[1736591957988,1.6428,184.73,184.63,2.7087]
[1736591957989,3.3379,184.73,184.63,2.7087]
[1736591960288,3.3379,184.73,184.61,1.5806]
[1736591960493,3.3379,184.73,184.66,2.7082]
[1736591960788,16.81755595,184.74,184.62,11.40555595]
[1736591960985,5.412,184.74,184.68,2.7079]
[1736591961489,5.412,184.74,184.65,11.40555595]
[1736591961490,11.40555595,184.77,184.69,2.7078]
[1736591962197,11.40555595,184.77,184.67,2.7081]
[1736591962694,11.40555595,184.74,184.67,2.7081]
[1736591962894,11.40555595,184.74,184.62,11.40555595]
[1736591963393,11.40555595,184.71,184.61,1.5806]
[1736591963596,11.40555595,184.71,184.63,2.7087]
[1736591964296,11.40555595,184.68,184.61,1.5806]
[1736591964494,11.40555595,184.68,184.59,52.57386574]
[1736591964899,11.40555595,184.68,184.6,2.7092]
[1736591965691,11.40555595,184.68,184.59,52.57386574]
[1736591967403,11.40555595,184.68,184.57,7.2309]
[1736591967600,11.40555595,184.68,184.57,1.5909]
[1736591967797,11.40555595,184.68,184.59,2.7093]
[1736591967997,11.40555595,184.68,184.57,1.5909]
[1736591968204,11.40555595,184.65,184.56,5.07912195]
[1736591968901,11.40555595,184.62,184.5,11.40555595]
[1736591969602,11.40555595,184.62,184.52,2.7103]
[1736591970398,11.40555595,184.62,184.53,2.7102]
[1736591970800,11.40555595,184.62,184.5,11.40555595]
[1736591971801,11.40555595,184.62,184.56,2.7097]
[1736591974003,11.40555595,184.62,184.48,8.962]
[1736591974206,11.40555595,184.62,184.55,2.7099]
[1736591974403,11.40555595,184.62,184.5,11.40555595]
[1736591974607,11.40555595,184.59,184.48,3.322]
[1736591974803,11.40555595,184.59,184.48,1.6793]
[1736591975007,11.40555595,184.59,184.47,1.6986]
[1736591975709,11.40555595,184.59,184.49,2.7107]
[1736591976209,11.40555595,184.59,184.47,1.6986]
[1736591976507,11.40555595,184.59,184.5,2.7106]
[1736591976908,11.40555595,184.59,184.48,11.40555595]
[1736591977109,3.3016,184.61,184.54,2.71]
[1736591979403,3.3016,184.61,184.55,2.7098]
[1736591980405,3.3016,184.61,184.52,2.7103]
[1736591982313,3.3016,184.61,184.47,19.97852859]
[1736591982510,3.3016,184.61,184.53,2.7102]
[1736591983814,3.3016,184.61,184.54,2.7101]
[1736591985315,3.3016,184.61,184.53,2.7102]
[1736591985516,18.27992859,184.6,184.47,7.2986]
[1736591986116,23.69192859,184.6,184.47,1.6986]
[1736591987017,18.27992859,184.57,184.47,4.4096]
[1736591987215,18.27992859,184.57,184.43,5.6]
[1736591987411,23.69192859,184.57,184.42,4.85201434]
[1736591987612,1.6558,184.56,184.45,2.7114]
[1736591987914,7.0678,184.56,184.42,4.85201434]
[1736591988515,7.0678,184.56,184.46,2.7111]
[1736591988814,18.27992859,184.54,184.42,4.85201434]
[1736591989019,3.1773,184.53,184.43,2.7115]
[1736591989613,3.1773,184.53,184.42,4.85201434]
[1736591990116,3.1773,184.53,184.44,2.7115]
[1736591991319,3.1773,184.53,184.42,4.85201434]
[1736591991618,3.1773,184.53,184.45,2.7113]
[1736591992619,3.1773,184.53,184.42,4.85201434]
[1736591992818,3.1773,184.53,184.48,2.7109]
[1736591993514,3.1773,184.53,184.42,4.85201434]
[1736591993714,3.1773,184.53,184.5,2.7106]
[1736591993918,3.1773,184.53,184.42,4.85201434]
[1736591994420,3.1773,184.53,184.49,2.7107]
[1736591996523,3.1773,184.53,184.48,2.7109]
[1736591997423,18.27992859,184.59,184.51,2.7105]
[1736591997624,5.412,184.61,184.47,23.87992859]
[1736591997821,5.412,184.61,184.48,1.5765]
[1736591998022,5.412,184.61,184.54,2.71]
[1736591999419,16.83599496,184.61,184.54,2.71]
[1736592002125,16.83599496,184.61,184.5,11.42399496]
[1736592002323,16.83599496,184.61,184.53,2.7102]
[1736592004229,3.1066,184.65,184.56,11.42399496]
[1736592004618,3.1066,184.65,184.53,11.42399496]
[1736592005024,4.7715,184.65,184.54,2.71]
[1736592005818,11.42399496,184.6,184.48,3.1927]
[1736592006127,11.42399496,184.6,184.48,13.00049496]
[1736592006321,11.42399496,184.6,184.49,2.7107]
[1736592006522,11.42399496,184.6,184.48,13.00049496]
[1736592007326,5.412,184.59,184.48,13.00049496]
[1736592008029,5.412,184.59,184.48,15.71139496]
[1736592008626,11.42399496,184.57,184.46,2.7112]
[1736592008826,4.8674,184.56,184.45,11.42399496]
[1736592009927,4.8674,184.56,184.46,2.7112]
[1736592010431,5.412,184.55,184.45,2.7113]
[1736592010739,16.83599496,184.54,184.43,11.42399496]
[1736592011631,3.213,184.56,184.42,4.85201434]
[1736592011830,3.213,184.56,184.47,11.42399496]
[1736592012024,3.213,184.56,184.48,2.7109]
[1736592013134,3.213,184.56,184.46,2.7112]
[1736592013429,3.213,184.56,184.45,11.42399496]
[1736592013932,3.213,184.56,184.47,2.7111]
[1736592014134,5.412,184.55,184.32,150.5474944]
[1736592014429,5.412,184.55,184.43,11.42399496]
[1736592015330,11.42399496,184.54,184.43,11.42399496]
[1736592015630,5.412,184.53,184.43,11.42399496]
[1736592016425,3.213,184.56,184.43,11.42399496]
[1736592016931,3.213,184.56,184.46,2.7111]
[1736592017429,3.213,184.56,184.43,11.42399496]
[1736592017635,5.412,184.55,184.43,11.42399496]
[1736592018536,5.412,184.55,184.4,5.68]
[1736592018737,5.412,184.55,184.43,11.42399496]
[1736592018937,5.412,184.55,184.44,2.7114]
[1736592019735,11.42399496,184.53,184.42,2.7118]
[1736592019937,5.412,184.51,184.39,11.42399496]
[1736592020137,16.83599496,184.5,184.39,11.42399496]
[1736592020336,1.6921,184.52,184.42,2.7118]
[1736592020537,1.6921,184.52,184.39,11.42399496]
[1736592020737,1.6921,184.52,184.42,11.42399496]
[1736592021938,5.412,184.53,184.42,11.42399496]
[1736592022140,5.412,184.53,184.37,5.68]
[1736592022141,5.412,184.53,184.45,11.42399496]
[1736592022339,5.412,184.55,184.45,11.42399496]
[1736592023142,5.412,184.55,184.47,2.711]
[1736592023636,3.213,184.56,184.46,2.7112]
[1736592023840,3.213,184.56,184.43,11.42399496]
[1736592024143,11.42399496,184.54,184.43,11.42399496]
[1736592024446,11.42399496,184.54,184.45,2.7114]
[1736592024833,11.42399496,184.54,184.43,14.13569496]
[1736592025036,11.42399496,184.54,184.43,11.42399496]
[1736592026042,11.42399496,184.54,184.44,2.7115]
[1736592026436,3.213,184.56,184.43,11.42399496]
[1736592026641,11.42399496,184.55,184.43,11.42399496]
[1736592026841,11.42399496,184.55,184.46,2.7111]
[1736592027542,5.412,184.54,184.45,2.7113]
[1736592028447,5.412,184.54,184.42,11.42399496]
[1736592028748,5.412,184.54,184.43,2.7116]
[1736592029047,11.42399496,184.52,184.42,11.42399496]
[1736592029644,5.412,184.54,184.45,2.7114]
[1736592029947,18.40721016,184.55,184.42,11.42399496]
[1736592030253,5.412,184.57,184.49,2.7108]
[1736592030445,148.7155235,184.58,184.48,11.42399496]
[1736592030645,148.7155235,184.58,184.52,2.7102]
[1736592030949,148.7155235,184.58,184.5,11.42399496]
[1736592031144,3.2416,184.61,184.5,11.42399496]
[1736592032144,3.2416,184.61,184.45,17.18399496]
[1736592032145,11.42399496,184.59,184.45,17.18399496]
[1736592032347,11.42399496,184.56,184.45,17.18399496]
[1736592033145,11.42399496,184.53,184.41,11.42399496]
[1736592033349,11.42399496,184.53,184.41,13.02209496]
[1736592033650,11.42399496,184.53,184.43,2.7117]
[1736592033847,11.42399496,184.53,184.41,13.02209496]
[1736592034245,11.42399496,184.5,184.34,52.64529686]
[1736592034447,11.42399496,184.47,184.36,11.42399496]
[1736592035650,11.42399496,184.48,184.36,11.42399496]
[1736592036045,11.42399496,184.48,184.35,1.6611]
[1736592036251,11.42399496,184.48,184.37,11.42399496]
[1736592037047,11.42399496,184.48,184.35,1.6611]
[1736592037246,11.42399496,184.48,184.36,11.42399496]
[1736592037545,11.42399496,184.48,184.37,3.1488835]
[1736592037750,11.42399496,184.48,184.36,11.42399496]
[1736592038045,11.42399496,184.48,184.37,3.1489016]
[1736592038252,11.42399496,184.48,184.36,11.42399496]
[1736592038447,11.42399496,184.45,184.36,11.42399496]
[1736592039354,3.1898,184.47,184.36,11.42399496]
[1736592039545,3.1898,184.47,184.37,3.13770104]
[1736592039748,3.1898,184.47,184.36,11.42399496]
[1736592039948,3.1898,184.47,184.37,3.13778514]
[1736592040147,3.1898,184.47,184.36,11.42399496]
[1736592040351,11.42399496,184.45,184.37,5.47726591]
[1736592040649,5.412,184.44,184.38,8.90034779]
[1736592040856,5.412,184.44,184.39,3.42308188]
[1736592041045,5.412,184.44,184.35,2.7127]
[1736592041243,5.412,184.44,184.36,8.8981003]
[1736592041551,5.412,184.44,184.37,3.4222175]
[1736592041753,2.712,184.41,184.38,3.4222175]
[1736592042051,2.712,184.41,184.33,11.42399496]
[1736592042243,5.412,184.46,184.34,8.89478349]
[1736592042448,2.7114,184.45,184.38,2.7124]
[1736592042750,5.412,184.46,184.39,8.89478349]
[1736592043050,5.412,184.46,184.33,15.60445468]
[1736592043255,16.83599496,184.44,184.34,8.89267558]
[1736592043448,16.83599496,184.44,184.35,8.89267558]
[1736592043653,16.83599496,184.44,184.36,8.89267558]
[1736592043854,2.7119,184.42,184.37,3.42013115]
[1736592044049,11.42399496,184.44,184.33,11.42399496]
[1736592044349,11.42399496,184.44,184.34,8.89095738]
[1736592044549,11.42399496,184.44,184.35,8.89095738]
[1736592044853,11.42399496,184.44,184.36,8.89095738]
[1736592045058,11.42399496,184.44,184.37,3.41947032]
[1736592045250,11.42399496,184.44,184.32,17.22585468]
[1736592045453,11.42399496,184.44,184.33,8.89085209]
[1736592045653,11.42399496,184.44,184.34,8.89085209]
[1736592045851,11.42399496,184.44,184.32,13.04539496]
[1736592046053,2.7119,184.42,184.35,2.7127]
[1736592046252,2.7119,184.42,184.36,8.89027621]
[1736592046554,11.42399496,184.44,184.37,3.41948647]
[1736592046856,14.13569496,184.44,184.38,3.41948647]
[1736592047052,11.42399496,184.44,184.32,13.04539496]
[1736592047358,2.712,184.42,184.35,2.7128]
[1736592047551,11.42399496,184.44,184.36,8.88985778]
[1736592047751,11.42399496,184.44,184.37,3.41904743]
[1736592047948,2.712,184.41,184.34,2.713]
[1736592048257,11.42399496,184.41,184.32,1.6214]
[1736592048555,2.7124,184.39,184.33,8.89085114]
[1736592048860,2.7124,184.39,184.34,3.41942948]
[1736592049060,2.7124,184.39,184.35,3.41942948]
[1736592049360,2.7124,184.39,184.32,1.6214]
[1736592049555,2.7126,184.37,184.33,8.8904687]
[1736592049753,11.42399496,184.38,184.27,10.09753273]
[1736592049955,11.42399496,184.38,184.28,8.89090677]
[1736592050255,11.42399496,184.38,184.29,8.89090677]
[1736592050463,11.42399496,184.38,184.3,8.89090677]
[1736592050762,2.7127,184.37,184.31,8.89151192]
[1736592050954,2.7127,184.37,184.32,3.41968361]
[1736592051148,2.7127,184.37,184.3,2.7135]
[1736592051355,3.2636,184.4,184.31,8.88913212]
[1736592051555,5.412,184.45,184.31,8.88913212]
[1736592051556,2.7117,184.43,184.32,20.31226188]
[1736592051751,2.7117,184.43,184.33,8.88826692]
[1736592051957,2.7123,184.4,184.34,8.88826692]
[1736592052156,2.7123,184.4,184.35,3.4188324]
[1736592052358,2.7123,184.4,184.36,3.4188324]
[1736592052563,2.7123,184.4,184.33,2.7131]
[1736592052752,2.7123,184.4,184.34,8.88895392]
[1736592052957,2.7123,184.39,184.35,3.4186998]
[1736592053268,11.42399496,184.39,184.3,2.7135]
[1736592053460,2.7124,184.38,184.31,8.88990923]
[1736592053760,11.42399496,184.44,184.37,2.7125]
[1736592054358,2.7117,184.43,184.37,2.7125]
[1736592055357,1.6491,184.46,184.34,11.42399496]
[1736592055558,1.6491,184.46,184.35,8.6279457]
[1736592055758,1.6491,184.46,184.36,3.3183158]
[1736592055957,7.0611,184.46,184.33,17.36399496]
[1736592056158,7.0611,184.46,184.34,8.62826397]
[1736592056359,7.0611,184.46,184.35,8.62826397]
[1736592056564,7.0611,184.46,184.36,3.31843821]
[1736592056764,2.7118,184.43,184.37,3.31843821]
[1736592056961,11.42399496,184.44,184.33,11.42399496]
[1736592057263,11.42399496,184.44,184.34,3.31863862]
[1736592057461,2.7121,184.41,184.35,3.31863862]
[1736592057661,2.7121,184.41,184.34,2.713]
[1736592057963,2.7126,184.37,184.3,2.7136]
[1736592058263,2.7126,184.37,184.31,3.31951086]
[1736592058463,2.7126,184.37,184.32,3.31951086]
[1736592058662,2.712,184.41,184.33,3.2497089]
[1736592058859,11.42399496,184.44,184.34,3.2497089]
[1736592059058,11.42399496,184.41,184.29,11.42399496]
[1736592059262,2.7125,184.38,184.31,2.7134]
[1736592059553,2.7125,184.38,184.32,3.24552036]
[1736592059757,2.7125,184.38,184.33,3.24552036]
[1736592060058,2.7125,184.38,184.31,2.7134]
[1736592060359,11.42399496,184.38,184.32,3.24557249]
[1736592060565,11.42399496,184.38,184.29,11.42399496]
[1736592060862,11.42399496,184.38,184.3,3.24587944]
[1736592061165,11.42399496,184.38,184.29,11.42399496]
[1736592061364,11.42399496,184.38,184.3,3.24605527]
[1736592061565,11.42399496,184.38,184.29,11.42399496]
[1736592061763,14.13639496,184.38,184.31,2.7133]
[1736592061956,1.6491,184.46,184.32,14.66931301]
[1736592062168,11.42399496,184.45,184.33,4.82201805]